[Event "Titled Tuesday Blitz April 26 Early 2022"]
[White "Sirosh, Ilja"]
[Black "Todorovic, Bojan"]
[WhiteFideId "4500458"]
[BlackFideId "917087"]
[WhiteElo "2241"]
[BlackElo "2266"]
[Result "1/2-1/2"]
[Round "10"]
[TimeControl "180+1"]
[Date "2022.04.26"]
[WhiteClock "0:00:19"]
[BlackClock "0:00:04"]

1. e4 {[%clk 0:03:00]}  e5 {[%clk 0:02:59]} 2. Nf3 {[%clk 0:03:00]}  Nc6 {[%clk 0:02:59]} 3. Bc4 {[%clk 0:03:00]}  Bc5 {[%clk 0:02:57]} 4. c3 {[%clk 0:03:00]}  Nf6 {[%clk 0:02:57]} 5. d4 {[%clk 0:03:01]}  exd4 {[%clk 0:02:56]} 6. cxd4 {[%clk 0:03:02]}  Bb4+ {[%clk 0:02:55]} 7. Nc3 {[%clk 0:03:03]}  Nxe4 {[%clk 0:02:53]} 8. O-O {[%clk 0:03:03]}  Bxc3 {[%clk 0:02:53]} 9. d5 {[%clk 0:03:04]}  Bf6 {[%clk 0:02:47]} 10. Re1 {[%clk 0:03:03]}  Ne7 {[%clk 0:02:46]} 11. Rxe4 {[%clk 0:03:01]}  d6 {[%clk 0:02:46]} 12. Bg5 {[%clk 0:03:01]}  Bxg5 {[%clk 0:02:34]} 13. Nxg5 {[%clk 0:03:02]}  O-O {[%clk 0:02:28]} 14. Nxh7 {[%clk 0:03:01]}  Kxh7 {[%clk 0:01:53]} 15. Qh5+ {[%clk 0:03:01]}  Kg8 {[%clk 0:01:53]} 16. Rh4 {[%clk 0:03:02]}  f6 {[%clk 0:01:47]} 17. Qh7+ {[%clk 0:02:57]}  Kf7 {[%clk 0:01:46]} 18. Bd3 {[%clk 0:02:41]}  Rg8 {[%clk 0:01:03]} 19. Re1 {[%clk 0:02:36]}  Bd7 {[%clk 0:00:55]} 20. Qh5+ {[%clk 0:01:51]}  g6 {[%clk 0:00:53]} 21. Qf3 {[%clk 0:01:13]}  Nf5 {[%clk 0:00:41]} 22. Rh7+ {[%clk 0:01:11]}  Rg7 {[%clk 0:00:41]} 23. Rxg7+ {[%clk 0:01:10]}  Kxg7 {[%clk 0:00:39]} 24. g4 {[%clk 0:01:09]}  Nh6 {[%clk 0:00:33]} 25. Qe4 {[%clk 0:01:07]}  f5 {[%clk 0:00:22]} 26. Qe7+ {[%clk 0:01:04]}  Nf7 {[%clk 0:00:19]} 27. gxf5 {[%clk 0:00:58]}  Bxf5 {[%clk 0:00:18]} 28. Bxf5 {[%clk 0:00:57]}  gxf5 {[%clk 0:00:18]} 29. Kg2 {[%clk 0:00:52]}  Qxe7 {[%clk 0:00:18]} 30. Rxe7 {[%clk 0:00:53]}  Rc8 {[%clk 0:00:18]} 31. f4 {[%clk 0:00:52]}  Kf6 {[%clk 0:00:18]} 32. Re6+ {[%clk 0:00:52]}  Kg7 {[%clk 0:00:18]} 33. h4 {[%clk 0:00:51]}  c6 {[%clk 0:00:17]} 34. Re7 {[%clk 0:00:51]}  cxd5 {[%clk 0:00:17]} 35. Rxb7 {[%clk 0:00:51]}  Rc2+ {[%clk 0:00:16]} 36. Kf3 {[%clk 0:00:51]}  Kf6 {[%clk 0:00:16]} 37. h5 {[%clk 0:00:50]}  Nh6 {[%clk 0:00:16]} 38. Rxa7 {[%clk 0:00:40]}  Rxb2 {[%clk 0:00:16]} 39. Rd7 {[%clk 0:00:41]}  Ke6 {[%clk 0:00:16]} 40. Rh7 {[%clk 0:00:41]}  Ng4 {[%clk 0:00:16]} 41. h6 {[%clk 0:00:40]}  Rxa2 {[%clk 0:00:15]} 42. Rh8 {[%clk 0:00:40]}  Rh2 {[%clk 0:00:15]} 43. h7 {[%clk 0:00:40]}  Kd7 {[%clk 0:00:15]} 44. Ra8 {[%clk 0:00:39]}  Rh3+ {[%clk 0:00:16]} 45. Kg2 {[%clk 0:00:38]}  Rh2+ {[%clk 0:00:14]} 46. Kg3 {[%clk 0:00:38]}  Rxh7 {[%clk 0:00:12]} 47. Ra7+ {[%clk 0:00:38]}  Kc6 {[%clk 0:00:12]} 48. Rxh7 {[%clk 0:00:39]}  d4 {[%clk 0:00:12]} 49. Kf3 {[%clk 0:00:37]}  Kd5 {[%clk 0:00:12]} 50. Re7 {[%clk 0:00:34]}  d3 {[%clk 0:00:11]} 51. Rf7 {[%clk 0:00:32]}  Kd4 {[%clk 0:00:09]} 52. Rxf5 {[%clk 0:00:31]}  Nh2+ {[%clk 0:00:07]} 53. Kf2 {[%clk 0:00:30]}  Ke4 {[%clk 0:00:07]} 54. Rf8 {[%clk 0:00:25]}  Ng4+ {[%clk 0:00:04]} 55. Ke1 {[%clk 0:00:24]}  Ke3 {[%clk 0:00:01]} 56. Re8+ {[%clk 0:00:21]}  Kxf4 {[%clk 0:00:02]} 57. Kd2 {[%clk 0:00:22]}  Ne5 {[%clk 0:00:02]} 58. Rh8 {[%clk 0:00:18]}  Ke4 {[%clk 0:00:02]} 59. Rh4+ {[%clk 0:00:19]}  Kd5 {[%clk 0:00:02]} 60. Rh5 {[%clk 0:00:19]}  Kc5 {[%clk 0:00:02]} 61. Rh4 {[%clk 0:00:19]}  Kd5 {[%clk 0:00:03]} 62. Rh5 {[%clk 0:00:20]}  Kc5 {[%clk 0:00:04]} 63. Rh4 {[%clk 0:00:19]}  Kd5 {[%clk 0:00:04]} 1/2-1/2


[Site "https://www.chess.com"]

[Event "Titled Tuesday Blitz April 26 Early 2022"]
[White "Stevens, Christian"]
[Black "Bilych, Olexiy"]
[WhiteFideId "2604450"]
[BlackFideId "14156504"]
[WhiteElo "2540"]
[BlackElo "2176"]
[Result "1-0"]
[Round "10"]
[TimeControl "180+1"]
[Date "2022.04.26"]
[WhiteClock "0:00:03"]
[BlackClock "0:00:01"]

1. Nf3 {[%clk 0:03:00]}  d5 {[%clk 0:02:59]} 2. e3 {[%clk 0:03:00]}  Nf6 {[%clk 0:02:59]} 3. c4 {[%clk 0:02:59]}  e6 {[%clk 0:02:58]} 4. Nc3 {[%clk 0:02:57]}  Be7 {[%clk 0:02:56]} 5. d4 {[%clk 0:02:57]}  O-O {[%clk 0:02:56]} 6. Bd3 {[%clk 0:02:58]}  b6 {[%clk 0:02:54]} 7. O-O {[%clk 0:02:56]}  Bb7 {[%clk 0:02:54]} 8. Qe2 {[%clk 0:02:56]}  Nbd7 {[%clk 0:02:39]} 9. Rd1 {[%clk 0:02:38]}  c5 {[%clk 0:02:25]} 10. b3 {[%clk 0:02:18]}  Re8 {[%clk 0:02:21]} 11. Bb2 {[%clk 0:02:17]}  Bd6 {[%clk 0:02:11]} 12. cxd5 {[%clk 0:01:44]}  exd5 {[%clk 0:02:10]} 13. Ba6 {[%clk 0:01:44]}  Qc8 {[%clk 0:01:44]} 14. Bxb7 {[%clk 0:01:42]}  Qxb7 {[%clk 0:01:45]} 15. dxc5 {[%clk 0:01:39]}  bxc5 {[%clk 0:01:44]} 16. Qb5 {[%clk 0:01:27]}  Nb6 {[%clk 0:01:29]} 17. Na4 {[%clk 0:01:26]}  Qd7 {[%clk 0:01:27]} 18. Qxd7 {[%clk 0:01:20]}  Nfxd7 {[%clk 0:01:28]} 19. Nxb6 {[%clk 0:01:17]}  Nxb6 {[%clk 0:01:29]} 20. Rac1 {[%clk 0:01:05]}  Rac8 {[%clk 0:01:27]} 21. g3 {[%clk 0:01:02]}  Red8 {[%clk 0:01:26]} 22. Kg2 {[%clk 0:01:00]}  f6 {[%clk 0:01:25]} 23. Rc2 {[%clk 0:00:54]}  Kf7 {[%clk 0:01:24]} 24. Rdc1 {[%clk 0:00:53]}  a5 {[%clk 0:01:12]} 25. Ba3 {[%clk 0:00:49]}  c4 {[%clk 0:00:59]} 26. Bb2 {[%clk 0:00:37]}  a4 {[%clk 0:00:50]} 27. bxc4 {[%clk 0:00:23]}  dxc4 {[%clk 0:00:44]} 28. Bd4 {[%clk 0:00:23]}  Bc5 {[%clk 0:00:44]} 29. Rb1 {[%clk 0:00:21]}  Rd6 {[%clk 0:00:32]} 30. Rb5 {[%clk 0:00:19]}  Bxd4 {[%clk 0:00:29]} 31. Nxd4 {[%clk 0:00:20]}  c3 {[%clk 0:00:27]} 32. Ra5 {[%clk 0:00:16]}  Kg6 {[%clk 0:00:17]} 33. Ra7 {[%clk 0:00:10]}  Rc5 {[%clk 0:00:13]} 34. g4 {[%clk 0:00:07]}  h5 {[%clk 0:00:13]} 35. h3 {[%clk 0:00:06]}  hxg4 {[%clk 0:00:13]} 36. hxg4 {[%clk 0:00:06]}  Nd7 {[%clk 0:00:07]} 37. Nf5 {[%clk 0:00:05]}  Rd1 {[%clk 0:00:02]} 38. Rxa4 {[%clk 0:00:04]}  Ne5 {[%clk 0:00:01]} 39. f3 {[%clk 0:00:03]} 1-0


[Site "https://www.chess.com"]

[Event "Titled Tuesday Blitz April 26 Early 2022"]
[White "Stribuk, Artiom"]
[Black "Abdusattorov, Nodirbek"]
[WhiteFideId "13515659"]
[BlackFideId "14204118"]
[WhiteElo "2259"]
[BlackElo "2663"]
[Result "1-0"]
[Round "10"]
[TimeControl "180+1"]
[Date "2022.04.26"]
[WhiteClock "0:00:37"]
[BlackClock "0:00:33"]

1. d4 {[%clk 0:03:00]}  Nf6 {[%clk 0:03:00]} 2. c4 {[%clk 0:02:59]}  g6 {[%clk 0:03:00]} 3. g3 {[%clk 0:02:57]}  Bg7 {[%clk 0:03:01]} 4. Bg2 {[%clk 0:02:57]}  O-O {[%clk 0:03:02]} 5. Nf3 {[%clk 0:02:58]}  d6 {[%clk 0:03:02]} 6. O-O {[%clk 0:02:58]}  Nbd7 {[%clk 0:03:03]} 7. Nc3 {[%clk 0:02:58]}  e5 {[%clk 0:03:04]} 8. e4 {[%clk 0:02:59]}  exd4 {[%clk 0:03:02]} 9. Nxd4 {[%clk 0:02:59]}  Re8 {[%clk 0:03:03]} 10. h3 {[%clk 0:02:57]}  Nc5 {[%clk 0:03:03]} 11. Re1 {[%clk 0:02:57]}  h6 {[%clk 0:03:04]} 12. b4 {[%clk 0:02:46]}  Ne6 {[%clk 0:03:03]} 13. Be3 {[%clk 0:02:46]}  a5 {[%clk 0:03:01]} 14. b5 {[%clk 0:02:45]}  Nc5 {[%clk 0:03:00]} 15. Qc2 {[%clk 0:02:45]}  Bd7 {[%clk 0:02:53]} 16. Rad1 {[%clk 0:02:44]}  Qc8 {[%clk 0:02:53]} 17. Kh2 {[%clk 0:02:44]}  Re5 {[%clk 0:02:53]} 18. Nf3 {[%clk 0:02:26]}  Rh5 {[%clk 0:02:46]} 19. Nh4 {[%clk 0:02:25]}  Re5 {[%clk 0:02:28]} 20. f4 {[%clk 0:02:13]}  Rh5 {[%clk 0:02:15]} 21. e5 {[%clk 0:01:28]}  dxe5 {[%clk 0:02:05]} 22. Bxc5 {[%clk 0:01:27]}  exf4 {[%clk 0:02:05]} 23. Bf2 {[%clk 0:01:14]}  g5 {[%clk 0:02:05]} 24. Nd5 {[%clk 0:00:55]}  Nxd5 {[%clk 0:01:28]} 25. Rxd5 {[%clk 0:00:54]}  Be6 {[%clk 0:01:28]} 26. Nf5 {[%clk 0:00:49]}  Bf8 {[%clk 0:01:19]} 27. g4 {[%clk 0:00:46]}  Bxd5 {[%clk 0:00:32]} 28. Bxd5 {[%clk 0:00:45]}  c6 {[%clk 0:00:33]} 29. Ne7+ {[%clk 0:00:37]} 1-0


[Site "https://www.chess.com"]

[Event "Titled Tuesday Blitz April 26 Early 2022"]
[White "Urbina Perez, Juan Antonio"]
[Black "Melikhov, Evgeny V."]
[WhiteFideId "2217368"]
[BlackFideId "4122046"]
[WhiteElo "2192"]
[BlackElo "1931"]
[Result "0-1"]
[Round "10"]
[TimeControl "180+1"]
[Date "2022.04.26"]
[WhiteClock "0:02:33"]
[BlackClock "0:02:13"]

1. e4 {[%clk 0:02:58]}  e5 {[%clk 0:02:58]} 2. Nf3 {[%clk 0:02:58]}  Nc6 {[%clk 0:02:58]} 3. Bb5 {[%clk 0:02:58]}  a6 {[%clk 0:02:58]} 4. Ba4 {[%clk 0:02:59]}  Nf6 {[%clk 0:02:58]} 5. d3 {[%clk 0:02:58]}  b5 {[%clk 0:02:57]} 6. Bb3 {[%clk 0:02:58]}  Be7 {[%clk 0:02:58]} 7. O-O {[%clk 0:02:57]}  d6 {[%clk 0:02:56]} 8. Nc3 {[%clk 0:02:56]}  O-O {[%clk 0:02:55]} 9. Nd5 {[%clk 0:02:56]}  Be6 {[%clk 0:02:52]} 10. c3 {[%clk 0:02:47]}  Qd7 {[%clk 0:02:45]} 11. Nxe7+ {[%clk 0:02:35]}  Qxe7 {[%clk 0:02:36]} 12. Bc2 {[%clk 0:02:35]}  h6 {[%clk 0:02:34]} 13. h3 {[%clk 0:02:35]}  Qd7 {[%clk 0:02:28]} 14. Re1 {[%clk 0:02:35]}  Ne7 {[%clk 0:02:26]} 15. d4 {[%clk 0:02:35]}  Ng6 {[%clk 0:02:16]} 16. d5 {[%clk 0:02:32]}  Bxh3 {[%clk 0:02:16]} 17. gxh3 {[%clk 0:02:33]}  Qxh3 {[%clk 0:02:16]} 18. Nh2 {[%clk 0:02:33]}  Nh4 {[%clk 0:02:13]} 0-1


[Site "https://www.chess.com"]

[Event "Titled Tuesday Blitz April 26 Early 2022"]
[White "Vakhlamov, Igor L."]
[Black "Sarana, Alexey"]
[WhiteFideId "24126748"]
[BlackFideId "24133795"]
[WhiteElo "2401"]
[BlackElo "2666"]
[Result "1/2-1/2"]
[Round "10"]
[TimeControl "180+1"]
[Date "2022.04.26"]
[WhiteClock "0:00:11"]
[BlackClock "0:00:05"]

1. e4 {[%clk 0:02:58]}  c5 {[%clk 0:02:52]} 2. Nf3 {[%clk 0:02:59]}  d6 {[%clk 0:02:52]} 3. Nc3 {[%clk 0:02:59]}  Nf6 {[%clk 0:02:53]} 4. d4 {[%clk 0:02:59]}  cxd4 {[%clk 0:02:53]} 5. Qxd4 {[%clk 0:03:00]}  Nc6 {[%clk 0:02:53]} 6. Bb5 {[%clk 0:03:00]}  Bd7 {[%clk 0:02:54]} 7. Bxc6 {[%clk 0:03:01]}  Bxc6 {[%clk 0:02:55]} 8. Bg5 {[%clk 0:03:01]}  e6 {[%clk 0:02:55]} 9. O-O-O {[%clk 0:03:02]}  Be7 {[%clk 0:02:56]} 10. Rhe1 {[%clk 0:03:02]}  O-O {[%clk 0:02:54]} 11. e5 {[%clk 0:03:02]}  dxe5 {[%clk 0:02:54]} 12. Nxe5 {[%clk 0:03:03]}  Qxd4 {[%clk 0:02:44]} 13. Rxd4 {[%clk 0:03:04]}  Rfc8 {[%clk 0:02:43]} 14. Nxc6 {[%clk 0:02:56]}  Rxc6 {[%clk 0:02:44]} 15. Ne4 {[%clk 0:02:56]}  Rac8 {[%clk 0:02:30]} 16. Re2 {[%clk 0:02:44]}  Kf8 {[%clk 0:02:19]} 17. Nxf6 {[%clk 0:02:44]}  gxf6 {[%clk 0:02:20]} 18. Bh6+ {[%clk 0:02:44]}  Ke8 {[%clk 0:02:19]} 19. Rg4 {[%clk 0:02:43]}  Bd6 {[%clk 0:02:08]} 20. Rg7 {[%clk 0:02:35]}  Rc5 {[%clk 0:01:59]} 21. Rd2 {[%clk 0:01:10]}  Ke7 {[%clk 0:01:54]} 22. Rxh7 {[%clk 0:01:10]}  Rg8 {[%clk 0:01:28]} 23. g3 {[%clk 0:01:08]}  Rc4 {[%clk 0:01:18]} 24. Be3 {[%clk 0:01:04]}  b6 {[%clk 0:01:18]} 25. Rd4 {[%clk 0:00:58]}  Rxd4 {[%clk 0:01:14]} 26. Bxd4 {[%clk 0:00:59]}  e5 {[%clk 0:01:13]} 27. Be3 {[%clk 0:00:56]}  f5 {[%clk 0:01:13]} 28. Kd1 {[%clk 0:00:53]}  f4 {[%clk 0:01:13]} 29. gxf4 {[%clk 0:00:54]}  exf4 {[%clk 0:01:12]} 30. Bd4 {[%clk 0:00:54]}  f3 {[%clk 0:00:33]} 31. Kd2 {[%clk 0:00:54]}  Ke6 {[%clk 0:00:23]} 32. Rh6+ {[%clk 0:00:48]}  Kd5 {[%clk 0:00:23]} 33. Kd3 {[%clk 0:00:48]}  Rg5 {[%clk 0:00:07]} 34. c4+ {[%clk 0:00:44]}  Kc6 {[%clk 0:00:08]} 35. Rf6 {[%clk 0:00:39]}  Rh5 {[%clk 0:00:08]} 36. b4 {[%clk 0:00:37]}  Kd7 {[%clk 0:00:06]} 37. Rxf7+ {[%clk 0:00:27]}  Ke6 {[%clk 0:00:06]} 38. Rf6+ {[%clk 0:00:27]}  Ke7 {[%clk 0:00:06]} 39. Rxf3 {[%clk 0:00:24]}  Bxb4 {[%clk 0:00:05]} 40. h3 {[%clk 0:00:17]}  Bd6 {[%clk 0:00:05]} 41. Bc3 {[%clk 0:00:16]}  Rh4 {[%clk 0:00:05]} 42. Bd2 {[%clk 0:00:13]}  Ke6 {[%clk 0:00:05]} 43. Re3+ {[%clk 0:00:13]}  Kd7 {[%clk 0:00:05]} 44. Rf3 {[%clk 0:00:13]}  Rh5 {[%clk 0:00:05]} 45. Be3 {[%clk 0:00:13]}  Ra5 {[%clk 0:00:04]} 46. h4 {[%clk 0:00:13]}  Rxa2 {[%clk 0:00:04]} 47. h5 {[%clk 0:00:13]}  Ra5 {[%clk 0:00:04]} 48. Rh3 {[%clk 0:00:13]}  Be5 {[%clk 0:00:04]} 49. Ke4 {[%clk 0:00:13]}  Ke6 {[%clk 0:00:03]} 50. h6 {[%clk 0:00:12]}  Kf7 {[%clk 0:00:02]} 51. Rh5 {[%clk 0:00:11]}  Bh8 {[%clk 0:00:01]} 52. Rxa5 {[%clk 0:00:11]}  bxa5 {[%clk 0:00:02]} 53. Bxa7 {[%clk 0:00:12]}  a4 {[%clk 0:00:02]} 54. Bc5 {[%clk 0:00:12]}  Bb2 {[%clk 0:00:01]} 55. Kd5 {[%clk 0:00:11]}  Kg6 {[%clk 0:00:02]} 56. Bf8 {[%clk 0:00:11]}  a3 {[%clk 0:00:02]} 57. Bxa3 {[%clk 0:00:10]}  Bxa3 {[%clk 0:00:03]} 58. c5 {[%clk 0:00:09]}  Bc1 {[%clk 0:00:03]} 59. Ke5 {[%clk 0:00:09]}  Bb2+ {[%clk 0:00:03]} 60. Ke6 {[%clk 0:00:08]}  Bc1 {[%clk 0:00:03]} 61. Ke5 {[%clk 0:00:09]}  Bb2+ {[%clk 0:00:03]} 62. Ke4 {[%clk 0:00:09]}  Ba3 {[%clk 0:00:03]} 63. c6 {[%clk 0:00:09]}  Bd6 {[%clk 0:00:03]} 64. Kd5 {[%clk 0:00:10]}  Bh2 {[%clk 0:00:04]} 65. Ke4 {[%clk 0:00:09]}  Bb8 {[%clk 0:00:03]} 66. Kd5 {[%clk 0:00:09]}  Kxh6 {[%clk 0:00:03]} 67. Ke6 {[%clk 0:00:09]}  Kg5 {[%clk 0:00:04]} 68. Kd7 {[%clk 0:00:10]}  Bh2 {[%clk 0:00:04]} 69. Kc8 {[%clk 0:00:11]}  Kg4 {[%clk 0:00:04]} 70. Kd7 {[%clk 0:00:10]}  Kf3 {[%clk 0:00:05]} 71. c7 {[%clk 0:00:10]}  Bxc7 {[%clk 0:00:04]} 72. Kxc7 {[%clk 0:00:11]}  Kxf2 {[%clk 0:00:05]} 1/2-1/2


[Site "https://www.chess.com"]

[Event "Titled Tuesday Blitz April 26 Early 2022"]
[White "Vokhidov, Shamsiddin"]
[Black "Richter, Nils"]
[WhiteFideId "14204223"]
[BlackFideId "12990809"]
[WhiteElo "2611"]
[BlackElo "2243"]
[Result "1/2-1/2"]
[Round "10"]
[TimeControl "180+1"]
[Date "2022.04.26"]
[WhiteClock "0:00:17"]
[BlackClock "0:00:26"]

1. e4 {[%clk 0:03:00]}  c5 {[%clk 0:02:59]} 2. Nc3 {[%clk 0:03:01]}  Nc6 {[%clk 0:02:59]} 3. Nf3 {[%clk 0:03:02]}  e5 {[%clk 0:02:58]} 4. Bc4 {[%clk 0:03:02]}  d6 {[%clk 0:02:56]} 5. d3 {[%clk 0:03:02]}  g6 {[%clk 0:02:55]} 6. Ng5 {[%clk 0:03:01]}  Nh6 {[%clk 0:02:54]} 7. f4 {[%clk 0:03:01]}  Bg7 {[%clk 0:02:53]} 8. O-O {[%clk 0:03:00]}  O-O {[%clk 0:02:52]} 9. f5 {[%clk 0:03:00]}  a6 {[%clk 0:02:39]} 10. fxg6 {[%clk 0:02:36]}  hxg6 {[%clk 0:02:37]} 11. a4 {[%clk 0:02:31]}  Nd4 {[%clk 0:02:30]} 12. h3 {[%clk 0:02:30]}  Ne6 {[%clk 0:02:26]} 13. Nxe6 {[%clk 0:02:28]}  Bxe6 {[%clk 0:02:27]} 14. Bxe6 {[%clk 0:02:26]}  fxe6 {[%clk 0:02:28]} 15. Rxf8+ {[%clk 0:02:23]}  Qxf8 {[%clk 0:02:28]} 16. Be3 {[%clk 0:02:21]}  Qe7 {[%clk 0:02:25]} 17. a5 {[%clk 0:02:20]}  Rf8 {[%clk 0:02:24]} 18. Qe2 {[%clk 0:02:18]}  Nf7 {[%clk 0:02:22]} 19. Rf1 {[%clk 0:02:16]}  Nd8 {[%clk 0:02:21]} 20. Rxf8+ {[%clk 0:02:13]}  Qxf8 {[%clk 0:02:20]} 21. Qg4 {[%clk 0:02:11]}  Qf7 {[%clk 0:02:19]} 22. Na4 {[%clk 0:02:00]}  Nc6 {[%clk 0:02:18]} 23. Bd2 {[%clk 0:02:01]}  Nd4 {[%clk 0:02:12]} 24. Nb6 {[%clk 0:01:50]}  Nxc2 {[%clk 0:02:10]} 25. Nc4 {[%clk 0:01:48]}  Bf8 {[%clk 0:02:06]} 26. Bc3 {[%clk 0:01:48]}  Nd4 {[%clk 0:02:00]} 27. Bxd4 {[%clk 0:01:47]}  exd4 {[%clk 0:01:58]} 28. Nd2 {[%clk 0:01:45]}  d5 {[%clk 0:01:54]} 29. Nf3 {[%clk 0:01:43]}  dxe4 {[%clk 0:01:53]} 30. Qxe4 {[%clk 0:01:42]}  Qf5 {[%clk 0:01:49]} 31. Ne5 {[%clk 0:01:10]}  Qxe4 {[%clk 0:01:47]} 32. dxe4 {[%clk 0:01:11]}  Kg7 {[%clk 0:01:44]} 33. Kf2 {[%clk 0:01:08]}  Bd6 {[%clk 0:01:41]} 34. Nc4 {[%clk 0:01:08]}  Bc7 {[%clk 0:01:39]} 35. e5 {[%clk 0:01:06]}  Kf7 {[%clk 0:01:34]} 36. Kf3 {[%clk 0:01:05]}  Ke7 {[%clk 0:01:33]} 37. Kf4 {[%clk 0:01:03]}  Kd7 {[%clk 0:01:31]} 38. h4 {[%clk 0:00:45]}  Kc6 {[%clk 0:01:30]} 39. g4 {[%clk 0:00:44]}  Kd5 {[%clk 0:01:29]} 40. b3 {[%clk 0:00:44]}  d3 {[%clk 0:01:24]} 41. h5 {[%clk 0:00:32]}  gxh5 {[%clk 0:01:23]} 42. gxh5 {[%clk 0:00:33]}  d2 {[%clk 0:01:05]} 43. Nxd2 {[%clk 0:00:31]}  Bxe5+ {[%clk 0:01:05]} 44. Ke3 {[%clk 0:00:28]}  Bg7 {[%clk 0:01:04]} 45. Kd3 {[%clk 0:00:28]}  Bh6 {[%clk 0:01:00]} 46. Ne4 {[%clk 0:00:27]}  e5 {[%clk 0:00:47]} 47. Nc3+ {[%clk 0:00:23]}  Ke6 {[%clk 0:00:44]} 48. Ke4 {[%clk 0:00:23]}  Bd2 {[%clk 0:00:42]} 49. Na4 {[%clk 0:00:21]}  Bxa5 {[%clk 0:00:41]} 50. Nxc5+ {[%clk 0:00:19]}  Kf6 {[%clk 0:00:39]} 51. Nxb7 {[%clk 0:00:16]}  Bc3 {[%clk 0:00:38]} 52. Nc5 {[%clk 0:00:11]}  Kg5 {[%clk 0:00:37]} 53. Nxa6 {[%clk 0:00:11]}  Kxh5 {[%clk 0:00:37]} 54. Nc5 {[%clk 0:00:09]}  Kg6 {[%clk 0:00:36]} 55. Nd7 {[%clk 0:00:09]}  Kf7 {[%clk 0:00:33]} 56. Kd5 {[%clk 0:00:10]}  Ke7 {[%clk 0:00:32]} 57. Nxe5 {[%clk 0:00:10]}  Kd8 {[%clk 0:00:29]} 58. Nc6+ {[%clk 0:00:09]}  Kc7 {[%clk 0:00:29]} 59. Kc5 {[%clk 0:00:10]}  Be1 {[%clk 0:00:26]} 60. Ne5 {[%clk 0:00:09]}  Kb7 {[%clk 0:00:24]} 61. Kb5 {[%clk 0:00:09]}  Bg3 {[%clk 0:00:22]} 62. Nc4 {[%clk 0:00:09]}  Be1 {[%clk 0:00:22]} 63. Kc5 {[%clk 0:00:08]}  Kc7 {[%clk 0:00:22]} 64. Kd5 {[%clk 0:00:08]}  Kb7 {[%clk 0:00:22]} 65. Ne3 {[%clk 0:00:08]}  Kb6 {[%clk 0:00:21]} 66. Nc2 {[%clk 0:00:09]}  Bd2 {[%clk 0:00:21]} 67. Kd4 {[%clk 0:00:09]}  Kb5 {[%clk 0:00:20]} 68. Kd3 {[%clk 0:00:10]}  Bb4 {[%clk 0:00:19]} 69. Nd4+ {[%clk 0:00:09]}  Kc5 {[%clk 0:00:19]} 70. Nc2 {[%clk 0:00:10]}  Kb5 {[%clk 0:00:19]} 71. Nxb4 {[%clk 0:00:09]}  Kxb4 {[%clk 0:00:20]} 72. Kc2 {[%clk 0:00:09]}  Kb5 {[%clk 0:00:20]} 73. Kc3 {[%clk 0:00:09]}  Kc5 {[%clk 0:00:21]} 74. Kd3 {[%clk 0:00:09]}  Kb4 {[%clk 0:00:21]} 75. Kc2 {[%clk 0:00:10]}  Kb5 {[%clk 0:00:22]} 76. Kc3 {[%clk 0:00:10]}  Kc5 {[%clk 0:00:23]} 77. b4+ {[%clk 0:00:11]}  Kb5 {[%clk 0:00:23]} 78. Kb3 {[%clk 0:00:12]}  Kb6 {[%clk 0:00:24]} 79. Kc4 {[%clk 0:00:12]}  Kc6 {[%clk 0:00:24]} 80. b5+ {[%clk 0:00:13]}  Kb6 {[%clk 0:00:24]} 81. Kb4 {[%clk 0:00:14]}  Kb7 {[%clk 0:00:24]} 82. Kc5 {[%clk 0:00:14]}  Kc7 {[%clk 0:00:25]} 83. b6+ {[%clk 0:00:15]}  Kb7 {[%clk 0:00:25]} 84. Kb5 {[%clk 0:00:15]}  Kb8 {[%clk 0:00:26]} 85. Kc6 {[%clk 0:00:16]}  Kc8 {[%clk 0:00:26]} 86. b7+ {[%clk 0:00:16]}  Kb8 {[%clk 0:00:26]} 87. Kb6 {[%clk 0:00:17]} 1/2-1/2


[Site "https://www.chess.com"]

[Event "Titled Tuesday Blitz April 26 Early 2022"]
[White "Ambartsumova, Karina"]
[Black "Rustemov, Alexander"]
[WhiteFideId "4166299"]
[BlackFideId "4119002"]
[WhiteElo "2262"]
[BlackElo "2823"]
[Result "0-1"]
[Round "11"]
[TimeControl "180+1"]
[Date "2022.04.26"]
[WhiteClock "0:00:02"]
[BlackClock "0:00:31"]

1. d4 {[%clk 0:03:00]}  Nf6 {[%clk 0:02:57]} 2. Nf3 {[%clk 0:02:58]}  e6 {[%clk 0:02:56]} 3. c4 {[%clk 0:02:57]}  d5 {[%clk 0:02:56]} 4. Nc3 {[%clk 0:02:57]}  Be7 {[%clk 0:02:56]} 5. Bf4 {[%clk 0:02:54]}  O-O {[%clk 0:02:56]} 6. Qc2 {[%clk 0:02:54]}  c5 {[%clk 0:02:53]} 7. Rd1 {[%clk 0:02:31]}  Nc6 {[%clk 0:02:42]} 8. e3 {[%clk 0:02:20]}  cxd4 {[%clk 0:02:39]} 9. exd4 {[%clk 0:01:52]}  b6 {[%clk 0:02:27]} 10. Be2 {[%clk 0:01:35]}  Ba6 {[%clk 0:02:24]} 11. Ne5 {[%clk 0:01:22]}  Rc8 {[%clk 0:02:18]} 12. O-O {[%clk 0:01:09]}  Na5 {[%clk 0:02:12]} 13. b3 {[%clk 0:00:54]}  dxc4 {[%clk 0:02:12]} 14. bxc4 {[%clk 0:00:54]}  Bxc4 {[%clk 0:02:02]} 15. Nxc4 {[%clk 0:00:51]}  Nxc4 {[%clk 0:02:03]} 16. Qa4 {[%clk 0:00:50]}  Nb2 {[%clk 0:02:01]} 17. Qxa7 {[%clk 0:00:43]}  Nxd1 {[%clk 0:02:01]} 18. Nxd1 {[%clk 0:00:43]}  Nd5 {[%clk 0:01:55]} 19. Bg3 {[%clk 0:00:33]}  Ra8 {[%clk 0:01:54]} 20. Qb7 {[%clk 0:00:30]}  Qc8 {[%clk 0:01:55]} 21. Qxc8 {[%clk 0:00:25]}  Rfxc8 {[%clk 0:01:54]} 22. Ne3 {[%clk 0:00:22]}  Rxa2 {[%clk 0:01:45]} 23. Bf3 {[%clk 0:00:12]}  Nc3 {[%clk 0:01:38]} 24. h4 {[%clk 0:00:09]}  b5 {[%clk 0:01:33]} 25. Re1 {[%clk 0:00:07]}  Bb4 {[%clk 0:01:27]} 26. d5 {[%clk 0:00:04]}  Nxd5 {[%clk 0:01:25]} 27. Nxd5 {[%clk 0:00:04]}  exd5 {[%clk 0:01:21]} 28. Rb1 {[%clk 0:00:04]}  Ra4 {[%clk 0:00:42]} 29. Bd1 {[%clk 0:00:03]}  Bc3 {[%clk 0:00:38]} 30. Bxa4 {[%clk 0:00:03]}  bxa4 {[%clk 0:00:39]} 31. Bd6 {[%clk 0:00:03]}  Ra8 {[%clk 0:00:36]} 32. Ba3 {[%clk 0:00:02]}  d4 {[%clk 0:00:35]} 33. Kf1 {[%clk 0:00:03]}  d3 {[%clk 0:00:34]} 34. Rb7 {[%clk 0:00:02]}  Re8 {[%clk 0:00:33]} 35. Rd7 {[%clk 0:00:02]}  Re1# {[%clk 0:00:31]} 0-1


[Site "https://www.chess.com"]